[Event "Live Chess"]
[Site "Chess.com"]
[Date "2023.05.21"]
[Round "-"]
[White "jimwad"]
[Black "martynstanley"]
[Result "1/2-1/2"]
[WhiteElo "1221"]
[BlackElo "1010"]
[TimeControl "300"]
[EndTime "16:12:28 PDT"]
[Termination "Game drawn - insufficient material"]

1. c4 {[%clk 0:04:58]} 1... e6 {[%clk 0:04:58.5]} 2. g3 {[%clk 0:04:57.3]} 2...
d5 {[%clk 0:04:57.8]} 3. cxd5 {[%clk 0:04:55.9]} 3... exd5 {[%clk 0:04:56.7]} 4.
Nc3 {[%clk 0:04:55.2]} 4... c5 {[%clk 0:04:55.9]} 5. d4 {[%clk 0:04:52.8]} 5...
Nc6 {[%clk 0:04:55.2]} 6. e3 {[%clk 0:04:51.4]} 6... Qb6 {[%clk 0:04:54.2]} 7.
Bg2 {[%clk 0:04:49.5]} 7... Nh6 {[%clk 0:04:53.2]} 8. Nge2 {[%clk 0:04:46.2]}
8... Nf5 {[%clk 0:04:51.8]} 9. dxc5 {[%clk 0:04:42.2]} 9... Bxc5 {[%clk
0:04:50.4]} 10. O-O {[%clk 0:04:41]} 10... h5 {[%clk 0:04:46.8]} 11. h4 {[%clk
0:04:39]} 11... Nxh4 {[%clk 0:04:45.1]} 12. gxh4 {[%clk 0:04:37.2]} 12... Qc7
{[%clk 0:04:41.5]} 13. Ng3 {[%clk 0:04:35.3]} 13... b6 {[%clk 0:04:40]} 14. Nxd5
{[%clk 0:04:28.4]} 14... Qd7 {[%clk 0:04:38.9]} 15. Nf6+ {[%clk 0:04:19.5]}
15... gxf6 {[%clk 0:04:36.5]} 16. Qxd7+ {[%clk 0:04:18.1]} 16... Bxd7 {[%clk
0:04:35.8]} 17. Bd2 {[%clk 0:04:08.8]} 17... O-O-O {[%clk 0:04:34.7]} 18. Bc3
{[%clk 0:04:07.5]} 18... Be7 {[%clk 0:04:31.6]} 19. Rac1 {[%clk 0:04:00.3]}
19... Bg4 {[%clk 0:04:29.9]} 20. Bd2 {[%clk 0:03:39.1]} 20... Rxd2 {[%clk
0:04:26.6]} 21. Bxc6 {[%clk 0:03:35.3]} 21... Rhd8 {[%clk 0:04:24.3]} 22. Bd5+
{[%clk 0:03:30.6]} 22... Kb8 {[%clk 0:04:18.3]} 23. Bxf7 {[%clk 0:03:29.1]}
23... Rd1 {[%clk 0:04:15.1]} 24. Rfxd1 {[%clk 0:03:26.3]} 24... Bxd1 {[%clk
0:04:13.4]} 25. Bxh5 {[%clk 0:03:18]} 25... Bxh5 {[%clk 0:04:10.6]} 26. Nxh5
{[%clk 0:03:17]} 26... f5 {[%clk 0:04:09.4]} 27. Nf4 {[%clk 0:03:12.9]} 27...
Bxh4 {[%clk 0:04:07.9]} 28. Kg2 {[%clk 0:02:58.6]} 28... Rg8+ {[%clk 0:04:06.6]}
29. Kf3 {[%clk 0:02:57.7]} 29... Bf6 {[%clk 0:04:03.3]} 30. Rc6 {[%clk
0:02:54.7]} 30... Bxb2 {[%clk 0:04:01]} 31. a4 {[%clk 0:02:52.3]} 31... Kb7
{[%clk 0:03:58.9]} 32. Rg6 {[%clk 0:02:46.2]} 32... Rxg6 {[%clk 0:03:56.2]} 33.
Nxg6 {[%clk 0:02:45.3]} 33... Ka6 {[%clk 0:03:55.7]} 34. Kf4 {[%clk 0:02:43.5]}
34... Ka5 {[%clk 0:03:55.4]} 35. Kxf5 {[%clk 0:02:41.3]} 35... Kxa4 {[%clk
0:03:54.5]} 36. Nf4 {[%clk 0:02:39.2]} 36... b5 {[%clk 0:03:54.1]} 37. Nd3
{[%clk 0:02:38.3]} 37... b4 {[%clk 0:03:53.5]} 38. Nxb2+ {[%clk 0:02:37.1]}
38... Ka3 {[%clk 0:03:52.1]} 39. Nc4+ {[%clk 0:02:36]} 39... Kb3 {[%clk
0:03:50.6]} 40. Nd2+ {[%clk 0:02:34.4]} 40... Kc3 {[%clk 0:03:49.7]} 41. Nb1+
{[%clk 0:02:33.1]} 41... Kc2 {[%clk 0:03:48.2]} 42. e4 {[%clk 0:02:30.8]} 42...
b3 {[%clk 0:03:47.3]} 43. e5 {[%clk 0:02:29.7]} 43... Kxb1 {[%clk 0:03:46.7]}
44. e6 {[%clk 0:02:28.7]} 44... Ka1 {[%clk 0:03:46.1]} 45. e7 {[%clk 0:02:27.8]}
45... b2 {[%clk 0:03:46]} 46. e8=Q {[%clk 0:02:25.3]} 46... b1=Q+ {[%clk
0:03:45]} 47. Kf4 {[%clk 0:02:22.7]} 47... Qc1+ {[%clk 0:03:43.2]} 48. Kg3
{[%clk 0:02:20.8]} 48... Qc3+ {[%clk 0:03:41.4]} 49. Qe3 {[%clk 0:02:14]} 49...
Qxe3+ {[%clk 0:03:38.7]} 50. fxe3 {[%clk 0:02:13.1]} 50... a5 {[%clk 0:03:38.2]}
51. e4 {[%clk 0:02:12.5]} 51... a4 {[%clk 0:03:36.6]} 52. e5 {[%clk 0:02:11.4]}
52... a3 {[%clk 0:03:36.5]} 53. e6 {[%clk 0:02:10.4]} 53... a2 {[%clk 0:03:36]}
54. e7 {[%clk 0:02:09.6]} 54... Kb2 {[%clk 0:03:35.8]} 55. e8=Q {[%clk
0:02:06.8]} 55... a1=Q {[%clk 0:03:34.4]} 56. Qe5+ {[%clk 0:02:05.1]} 56... Ka2
{[%clk 0:03:32.8]} 57. Qe2+ {[%clk 0:02:03.3]} 57... Qb2 {[%clk 0:03:28.8]} 58.
Qc4+ {[%clk 0:02:01.8]} 58... Kb1 {[%clk 0:03:26.6]} 59. Qf1+ {[%clk 0:01:59.6]}
59... Ka2 {[%clk 0:03:25.5]} 60. Qa6+ {[%clk 0:01:57.3]} 60... Kb1 {[%clk
0:03:24.3]} 61. Qg6+ {[%clk 0:01:53.5]} 61... Ka2 {[%clk 0:03:22.8]} 62. Qa6+
{[%clk 0:01:50.9]} 62... Kb1 {[%clk 0:03:21.9]} 63. Qf1+ {[%clk 0:01:49.4]}
63... Ka2 {[%clk 0:03:20.6]} 64. Qf7+ {[%clk 0:01:47]} 64... Ka3 {[%clk
0:03:18.8]} 65. Qa7+ {[%clk 0:01:45.4]} 65... Kb3 {[%clk 0:03:17.3]} 66. Qb6+
{[%clk 0:01:43.8]} 66... Kc2 {[%clk 0:03:16.3]} 67. Qf2+ {[%clk 0:01:41.7]}
67... Kb3 {[%clk 0:03:15.2]} 68. Qf3+ {[%clk 0:01:40.1]} 68... Ka2 {[%clk
0:03:14.1]} 69. Qd5+ {[%clk 0:01:37.5]} 69... Kb1 {[%clk 0:03:12.6]} 70. Qd1+
{[%clk 0:01:36.2]} 70... Ka2 {[%clk 0:03:11.3]} 71. Qa4+ {[%clk 0:01:33.7]}
71... Qa3+ {[%clk 0:03:09.7]} 72. Qxa3+ {[%clk 0:01:32.4]} 72... Kxa3 {[%clk
0:03:08.9]} 1/2-1/2

[Event "Live Chess"]
[Site "Chess.com"]
[Date "2023.05.21"]
[Round "-"]
[White "SupremeTactician"]
[Black "LodeshChess"]
[Result "1-0"]
[WhiteElo "2335"]
[BlackElo "1130"]
[TimeControl "300"]
[EndTime "16:12:32 PDT"]
[Termination "SupremeTactician won by checkmate"]

1. e4 {[%clk 0:04:58.6]} 1... c6 {[%clk 0:04:57.9]} 2. d4 {[%clk 0:04:57.5]}
2... d5 {[%clk 0:04:57.4]} 3. Nc3 {[%clk 0:04:57.4]} 3... dxe4 {[%clk 0:04:56]}
4. Nxe4 {[%clk 0:04:57.3]} 4... Bf5 {[%clk 0:04:55.2]} 5. Nc5 {[%clk 0:04:56.3]}
5... Nf6 {[%clk 0:04:37.1]} 6. Nxb7 {[%clk 0:04:52.7]} 6... Qb6 {[%clk
0:04:27.3]} 7. Nc5 {[%clk 0:04:51.1]} 7... e6 {[%clk 0:04:25.1]} 8. Na4 {[%clk
0:04:46]} 8... Qb4+ {[%clk 0:04:21]} 9. c3 {[%clk 0:04:44.4]} 9... Qa5 {[%clk
0:04:07.1]} 10. Nf3 {[%clk 0:04:36.3]} 10... Be7 {[%clk 0:04:04.2]} 11. b4
{[%clk 0:04:32]} 11... Qc7 {[%clk 0:03:58.7]} 12. Bd3 {[%clk 0:04:30]} 12...
Bxd3 {[%clk 0:03:55.8]} 13. Qxd3 {[%clk 0:04:29.9]} 13... O-O {[%clk 0:03:53.1]}
14. O-O {[%clk 0:04:21]} 14... Bd6 {[%clk 0:03:42.7]} 15. Bg5 {[%clk 0:04:17.8]}
15... Nd5 {[%clk 0:03:26.3]} 16. Nc5 {[%clk 0:04:13.6]} 16... Nd7 {[%clk
0:03:16.5]} 17. Nxd7 {[%clk 0:04:10.2]} 17... Qxd7 {[%clk 0:03:15.4]} 18. Bd2
{[%clk 0:04:07.2]} 18... Rfd8 {[%clk 0:03:04.3]} 19. a3 {[%clk 0:04:03.1]} 19...
Nf4 {[%clk 0:02:51.5]} 20. Bxf4 {[%clk 0:03:59.8]} 20... Bxf4 {[%clk 0:02:50.5]}
21. Rae1 {[%clk 0:03:49.1]} 21... a5 {[%clk 0:02:41.9]} 22. Re4 {[%clk
0:03:45.5]} 22... Qd6 {[%clk 0:02:32.3]} 23. g3 {[%clk 0:03:39.5]} 23... Bh6
{[%clk 0:02:22.9]} 24. Ne5 {[%clk 0:03:36.5]} 24... axb4 {[%clk 0:02:14.7]} 25.
axb4 {[%clk 0:03:35.9]} 25... Ra3 {[%clk 0:01:56.5]} 26. Nc4 {[%clk 0:03:27.1]}
26... Qxb4 {[%clk 0:01:44.9]} 27. Nxa3 {[%clk 0:03:18.6]} 27... Qxa3 {[%clk
0:01:44.3]} 28. Rb1 {[%clk 0:03:15.7]} 28... c5 {[%clk 0:01:34.9]} 29. d5 {[%clk
0:03:09.2]} 29... Kf8 {[%clk 0:01:15.1]} 30. dxe6 {[%clk 0:02:46.1]} 30... Rxd3
{[%clk 0:00:55.6]} 31. e7+ {[%clk 0:02:44.5]} 31... Ke8 {[%clk 0:00:39]} 32.
Rb8+ {[%clk 0:02:38.9]} 32... Kd7 {[%clk 0:00:38.6]} 33. e8=Q+ {[%clk
0:02:37.6]} 33... Kd6 {[%clk 0:00:32.8]} 34. Qd8+ {[%clk 0:02:21.5]} 34... Kc6
{[%clk 0:00:28.6]} 35. Rb6# {[%clk 0:02:20]} 1-0

[Event "Live Chess"]
[Site "Chess.com"]
[Date "2023.05.21"]
[Round "-"]
[White "HoarseyHorsey"]
[Black "LiamClery2020"]
[Result "0-1"]
[WhiteElo "1426"]
[BlackElo "2068"]
[TimeControl "300"]
[EndTime "16:12:33 PDT"]
[Termination "LiamClery2020 won by checkmate"]

1. d4 {[%clk 0:04:58.6]} 1... Nf6 {[%clk 0:04:58.2]} 2. c4 {[%clk 0:04:56.8]}
2... g6 {[%clk 0:04:56.9]} 3. f3 {[%clk 0:04:54.2]} 3... d6 {[%clk 0:04:53.8]}
4. Nc3 {[%clk 0:04:52.5]} 4... Bg7 {[%clk 0:04:52.5]} 5. e4 {[%clk 0:04:51.6]}
5... O-O {[%clk 0:04:51]} 6. Nge2 {[%clk 0:04:50.5]} 6... e5 {[%clk 0:04:50.5]}
7. d5 {[%clk 0:04:49.4]} 7... Ne8 {[%clk 0:04:45.8]} 8. g4 {[%clk 0:04:46.1]}
8... f5 {[%clk 0:04:41.9]} 9. gxf5 {[%clk 0:04:44]} 9... gxf5 {[%clk 0:04:41]}
10. Rg1 {[%clk 0:04:35]} 10... Kh8 {[%clk 0:04:38.9]} 11. Bh3 {[%clk 0:04:26]}
11... fxe4 {[%clk 0:04:35.9]} 12. Bxc8 {[%clk 0:04:24.6]} 12... Qxc8 {[%clk
0:04:23.7]} 13. fxe4 {[%clk 0:04:22.1]} 13... Qh3 {[%clk 0:04:17.5]} 14. Qd2
{[%clk 0:03:58.1]} 14... Nd7 {[%clk 0:04:13.3]} 15. Qg5 {[%clk 0:03:51.4]} 15...
Nc5 {[%clk 0:04:10.2]} 16. Bd2 {[%clk 0:03:34.5]} 16... Nd3+ {[%clk 0:04:04.1]}
17. Kd1 {[%clk 0:03:30.6]} 17... Nxb2+ {[%clk 0:04:02.5]} 18. Kc2 {[%clk
0:03:29.3]} 18... Nxc4 {[%clk 0:04:01.9]} 19. Rg3 {[%clk 0:03:13]} 19... Qd7
{[%clk 0:03:59.7]} 20. Rag1 {[%clk 0:03:08.9]} 20... Nxd2 {[%clk 0:03:47.2]} 21.
Kxd2 {[%clk 0:03:07.3]} 21... Rf6 {[%clk 0:03:38.5]} 22. h4 {[%clk 0:02:56.9]}
22... Rg6 {[%clk 0:03:33.6]} 23. Qh5 {[%clk 0:02:53.9]} 23... Nf6 {[%clk
0:03:26.7]} 24. Qf3 {[%clk 0:02:45.8]} 24... Bh6+ {[%clk 0:03:23.4]} 25. Kd3
{[%clk 0:02:40.4]} 25... Rf8 {[%clk 0:02:45.5]} 26. Rxg6 {[%clk 0:02:31.4]}
26... hxg6 {[%clk 0:02:44.6]} 27. Rxg6 {[%clk 0:02:30.3]} 27... Bg7 {[%clk
0:02:26.5]} 28. Ng3 {[%clk 0:02:17.2]} 28... Qh3 {[%clk 0:02:19.6]} 29. Qf5
{[%clk 0:01:32.6]} 29... Qxf5 {[%clk 0:02:15.5]} 30. Nxf5 {[%clk 0:01:32.5]}
30... Rf7 {[%clk 0:02:07.6]} 31. Ne2 {[%clk 0:01:16.8]} 31... Nxd5 {[%clk
0:02:02.6]} 32. exd5 {[%clk 0:01:13.9]} 32... Rxf5 {[%clk 0:02:01.7]} 33. Ke4
{[%clk 0:01:11]} 33... Rf2 {[%clk 0:01:58.1]} 34. Ng3 {[%clk 0:01:08.6]} 34...
Rf4+ {[%clk 0:01:56.9]} 35. Ke3 {[%clk 0:01:05.5]} 35... Rxh4 {[%clk 0:01:49.6]}
36. Nf5 {[%clk 0:01:04.2]} 36... Rh7 {[%clk 0:01:22.9]} 37. Ke4 {[%clk
0:00:59.5]} 37... Kg8 {[%clk 0:01:19.5]} 38. a4 {[%clk 0:00:47.6]} 38... Kf7
{[%clk 0:01:18.4]} 39. Rg3 {[%clk 0:00:43.7]} 39... Bf6 {[%clk 0:01:14.4]} 40.
Kf3 {[%clk 0:00:41.1]} 40... Rh1 {[%clk 0:01:12.2]} 41. Ke4 {[%clk 0:00:35.3]}
41... a6 {[%clk 0:01:08.2]} 42. Rg2 {[%clk 0:00:30.5]} 42... Ra1 {[%clk
0:01:01.9]} 43. Nh6+ {[%clk 0:00:27.9]} 43... Ke8 {[%clk 0:00:54.2]} 44. Kf5
{[%clk 0:00:25.7]} 44... Be7 {[%clk 0:00:47.9]} 45. Ke6 {[%clk 0:00:21.9]} 45...
Rf1 {[%clk 0:00:43.8]} 46. Rg8+ {[%clk 0:00:18.7]} 46... Rf8 {[%clk 0:00:43.2]}
47. Rg2 {[%clk 0:00:18.1]} 47... Rf6# {[%clk 0:00:42]} 0-1

[Event "Live Chess"]
[Site "Chess.com"]
[Date "2023.05.21"]
[Round "-"]
[White "JohanKjeldahl"]
[Black "laminaaprod"]
[Result "0-1"]
[WhiteElo "1873"]
[BlackElo "2249"]
[TimeControl "300"]
[EndTime "16:12:37 PDT"]
[Termination "laminaaprod won by resignation"]

1. c4 {[%clk 0:04:57.1]} 1... e6 {[%clk 0:04:56.5]} 2. Nc3 {[%clk 0:04:55.1]}
2... c5 {[%clk 0:04:53.4]} 3. Nf3 {[%clk 0:04:52]} 3... d5 {[%clk 0:04:52.7]} 4.
cxd5 {[%clk 0:04:50.2]} 4... exd5 {[%clk 0:04:50.9]} 5. d4 {[%clk 0:04:49.8]}
5... Nc6 {[%clk 0:04:48.2]} 6. e3 {[%clk 0:04:45.1]} 6... Nf6 {[%clk 0:04:46.9]}
7. Bb5 {[%clk 0:04:40.3]} 7... Be7 {[%clk 0:04:44.6]} 8. O-O {[%clk 0:04:38.8]}
8... O-O {[%clk 0:04:43.1]} 9. dxc5 {[%clk 0:04:37.3]} 9... Bxc5 {[%clk
0:04:39.5]} 10. a3 {[%clk 0:04:36.4]} 10... a6 {[%clk 0:04:38.6]} 11. Bd3 {[%clk
0:04:34.2]} 11... Bd6 {[%clk 0:04:35.6]} 12. b4 {[%clk 0:04:31.8]} 12... Bg4
{[%clk 0:04:32]} 13. h3 {[%clk 0:04:26.3]} 13... Bh5 {[%clk 0:04:30.8]} 14. Bb2
{[%clk 0:04:23.2]} 14... Rc8 {[%clk 0:04:22.8]} 15. Be2 {[%clk 0:04:21.4]} 15...
Bb8 {[%clk 0:04:19.9]} 16. Rc1 {[%clk 0:04:16.4]} 16... Qd6 {[%clk 0:04:07.3]}
17. g3 {[%clk 0:04:10.1]} 17... Rfd8 {[%clk 0:04:03.1]} 18. Kg2 {[%clk
0:04:07.5]} 18... Qe7 {[%clk 0:03:57.2]} 19. Nd4 {[%clk 0:03:56.5]} 19... Bg6
{[%clk 0:03:54.1]} 20. Bf3 {[%clk 0:03:50.5]} 20... Ne4 {[%clk 0:03:41.1]} 21.
Nxe4 {[%clk 0:03:45.2]} 21... dxe4 {[%clk 0:03:37.6]} 22. Be2 {[%clk 0:03:43.9]}
22... Ne5 {[%clk 0:03:17.6]} 23. Qb3 {[%clk 0:03:36.8]} 23... Nd3 {[%clk
0:03:02.3]} 24. Bxd3 {[%clk 0:03:34.3]} 24... exd3 {[%clk 0:03:01.1]} 25. Rxc8
{[%clk 0:03:32.9]} 25... Rxc8 {[%clk 0:02:57.6]} 26. Rd1 {[%clk 0:03:18.6]}
26... h5 {[%clk 0:02:43.8]} 27. b5 {[%clk 0:02:54.7]} 27... h4 {[%clk
0:02:34.1]} 28. bxa6 {[%clk 0:02:33.9]} 28... bxa6 {[%clk 0:02:31.4]} 29. Qb4
{[%clk 0:02:26.8]} 29... Bd6 {[%clk 0:02:25.3]} 30. Qa5 {[%clk 0:01:52.3]} 30...
hxg3 {[%clk 0:02:11]} 31. Nf3 {[%clk 0:01:29.4]} 31... gxf2 {[%clk 0:01:37.2]}
32. Kxf2 {[%clk 0:01:27.9]} 32... Rc2+ {[%clk 0:01:23.5]} 33. Rd2 {[%clk
0:01:27]} 33... Bc5 {[%clk 0:01:08.2]} 34. Bd4 {[%clk 0:01:24.3]} 34... Bxd4
{[%clk 0:01:06.6]} 35. Nxd4 {[%clk 0:01:18.8]} 35... Qh4+ {[%clk 0:01:02.3]} 0-1

[Event "Live Chess"]
[Site "Chess.com"]
[Date "2023.05.21"]
[Round "-"]
[White "elvenstar"]
[Black "sanjesh_ananda"]
[Result "0-1"]
[WhiteElo "1559"]
[BlackElo "1302"]
[TimeControl "300"]
[EndTime "16:12:52 PDT"]
[Termination "sanjesh_ananda won by checkmate"]

1. e4 {[%clk 0:04:58.3]} 1... e5 {[%clk 0:04:58.8]} 2. Nf3 {[%clk 0:04:56.9]}
2... Nc6 {[%clk 0:04:57.3]} 3. d4 {[%clk 0:04:55.5]} 3... exd4 {[%clk
0:04:41.7]} 4. Bc4 {[%clk 0:04:49.6]} 4... Nf6 {[%clk 0:04:26.1]} 5. O-O {[%clk
0:04:46.9]} 5... Be7 {[%clk 0:04:21.8]} 6. Re1 {[%clk 0:04:34.5]} 6... d5 {[%clk
0:04:13.5]} 7. exd5 {[%clk 0:04:28.8]} 7... Nxd5 {[%clk 0:04:11.3]} 8. Nxd4
{[%clk 0:04:23.9]} 8... O-O {[%clk 0:03:44.6]} 9. Bxd5 {[%clk 0:04:20.4]} 9...
Qxd5 {[%clk 0:03:42.8]} 10. c3 {[%clk 0:04:19.2]} 10... Bc5 {[%clk 0:03:31.4]}
11. Be3 {[%clk 0:04:13.2]} 11... Ne5 {[%clk 0:03:20.9]} 12. b4 {[%clk
0:03:53.3]} 12... Bb6 {[%clk 0:03:16]} 13. a4 {[%clk 0:03:37.4]} 13... a5 {[%clk
0:03:04.2]} 14. b5 {[%clk 0:02:59]} 14... Ng4 {[%clk 0:02:34.7]} 15. Na3 {[%clk
0:02:16.6]} 15... Qd6 {[%clk 0:01:57.2]} 16. g3 {[%clk 0:02:00.3]} 16... Qd5
{[%clk 0:00:34.7]} 17. Qb3 {[%clk 0:01:07]} 17... Qh5 {[%clk 0:00:29.2]} 18. h4
{[%clk 0:00:52.2]} 18... Ne5 {[%clk 0:00:16.1]} 19. Kg2 {[%clk 0:00:43.7]} 19...
Bxd4 {[%clk 0:00:13]} 20. cxd4 {[%clk 0:00:17.7]} 20... Qf3+ {[%clk 0:00:10.7]}
21. Kf1 {[%clk 0:00:11.1]} 21... Bh3+ {[%clk 0:00:08.5]} 22. Kg1 {[%clk
0:00:09.2]} 22... Qg2# {[%clk 0:00:07.3]} 0-1

[Event "Live Chess"]
[Site "Chess.com"]
[Date "2023.05.21"]
[Round "-"]
[White "DaveL5678"]
[Black "domrobson"]
[Result "0-1"]
[WhiteElo "1012"]
[BlackElo "1771"]
[TimeControl "300"]
[EndTime "16:13:08 PDT"]
[Termination "domrobson won by checkmate"]

1. e4 {[%clk 0:04:56.8]} 1... e5 {[%clk 0:04:59.2]} 2. Nf3 {[%clk 0:04:54.2]}
2... Nc6 {[%clk 0:04:58.5]} 3. c3 {[%clk 0:04:53.5]} 3... Nf6 {[%clk 0:04:57.8]}
4. d4 {[%clk 0:04:52.6]} 4... d6 {[%clk 0:04:57]} 5. d5 {[%clk 0:04:50]} 5...
Ne7 {[%clk 0:04:56]} 6. Bd3 {[%clk 0:04:43]} 6... c6 {[%clk 0:04:54.2]} 7. dxc6
{[%clk 0:04:40.2]} 7... bxc6 {[%clk 0:04:52.2]} 8. Bg5 {[%clk 0:04:34.6]} 8...
Ng6 {[%clk 0:04:44.2]} 9. O-O {[%clk 0:04:27.6]} 9... h6 {[%clk 0:04:42.2]} 10.
Be3 {[%clk 0:04:18.3]} 10... Be7 {[%clk 0:04:39.4]} 11. Na3 {[%clk 0:04:05.4]}
11... O-O {[%clk 0:04:37.8]} 12. Nc4 {[%clk 0:04:02.5]} 12... Bg4 {[%clk
0:04:34.7]} 13. h3 {[%clk 0:03:56.1]} 13... Bxf3 {[%clk 0:04:33.6]} 14. Qxf3
{[%clk 0:03:51.2]} 14... d5 {[%clk 0:04:32.6]} 15. exd5 {[%clk 0:03:44.5]} 15...
cxd5 {[%clk 0:04:31.7]} 16. Bxg6 {[%clk 0:03:19.1]} 16... e4 {[%clk 0:04:18.1]}
17. Bxe4 {[%clk 0:03:01.9]} 17... dxe4 {[%clk 0:04:11.4]} 18. Qe2 {[%clk
0:02:41.8]} 18... Nd5 {[%clk 0:04:03.8]} 19. Rad1 {[%clk 0:02:27.2]} 19... Rc8
{[%clk 0:03:59.3]} 20. Ne5 {[%clk 0:02:17]} 20... Qa5 {[%clk 0:03:53.3]} 21. Nd7
{[%clk 0:02:03.8]} 21... Rfd8 {[%clk 0:03:47.7]} 22. Ne5 {[%clk 0:01:28.5]}
22... Nxe3 {[%clk 0:03:44.1]} 23. Rxd8+ {[%clk 0:01:14.7]} 23... Rxd8 {[%clk
0:03:42.6]} 24. Qxe3 {[%clk 0:01:06.9]} 24... Qxe5 {[%clk 0:03:41.2]} 25. Qxa7
{[%clk 0:00:58.1]} 25... Bc5 {[%clk 0:03:39.6]} 26. Qa6 {[%clk 0:00:43.9]} 26...
Rd6 {[%clk 0:03:35]} 27. Qc8+ {[%clk 0:00:38.2]} 27... Kh7 {[%clk 0:03:33.7]}
28. g3 {[%clk 0:00:24.3]} 28... Qxg3+ {[%clk 0:03:30.7]} 29. Kh1 {[%clk
0:00:18.3]} 29... Qf3+ {[%clk 0:03:29.5]} 30. Kg1 {[%clk 0:00:11.3]} 30... Rg6+
{[%clk 0:03:28.3]} 31. Kh2 {[%clk 0:00:09.5]} 31... Bd6# {[%clk 0:03:27]} 0-1

[Event "Live Chess"]
[Site "Chess.com"]
[Date "2023.05.21"]
[Round "-"]
[White "AlanPaling"]
[Black "Biranidun"]
[Result "0-1"]
[WhiteElo "1313"]
[BlackElo "2686"]
[TimeControl "300"]
[EndTime "16:13:24 PDT"]
[Termination "Biranidun won by resignation"]

1. c4 {[%clk 0:04:57.8]} 1... Nf6 {[%clk 0:04:58.7]} 2. Nc3 {[%clk 0:04:56]}
2... g6 {[%clk 0:04:58]} 3. g3 {[%clk 0:04:54.2]} 3... d6 {[%clk 0:04:57.9]} 4.
Bg2 {[%clk 0:04:52.6]} 4... Bg7 {[%clk 0:04:57.8]} 5. e4 {[%clk 0:04:50.2]} 5...
c5 {[%clk 0:04:55]} 6. Nge2 {[%clk 0:04:48.5]} 6... Nc6 {[%clk 0:04:54.5]} 7.
O-O {[%clk 0:04:43.9]} 7... O-O {[%clk 0:04:54.1]} 8. h3 {[%clk 0:04:40.5]} 8...
a6 {[%clk 0:04:53.4]} 9. d3 {[%clk 0:04:37.6]} 9... Rb8 {[%clk 0:04:52.7]} 10.
Be3 {[%clk 0:04:35.9]} 10... b5 {[%clk 0:04:51]} 11. b3 {[%clk 0:04:34.2]} 11...
Ne8 {[%clk 0:04:48.9]} 12. Nd5 {[%clk 0:04:23.6]} 12... e6 {[%clk 0:04:46.3]}
13. Ndc3 {[%clk 0:04:18.8]} 13... b4 {[%clk 0:04:44.4]} 14. d4 {[%clk
0:04:13.8]} 14... bxc3 {[%clk 0:04:43.3]} 15. Qc2 {[%clk 0:04:12.1]} 15... cxd4
{[%clk 0:04:42]} 16. Bc1 {[%clk 0:03:54.5]} 16... Nb4 {[%clk 0:04:30.3]} 0-1

[Event "Live Chess"]
[Site "Chess.com"]
[Date "2023.05.21"]
[Round "-"]
[White "Singapourfeuj"]
[Black "chessfiction"]
[Result "1-0"]
[WhiteElo "2215"]
[BlackElo "2342"]
[TimeControl "300"]
[EndTime "16:13:25 PDT"]
[Termination "Singapourfeuj won by resignation"]

1. d4 {[%clk 0:04:58.9]} 1... d5 {[%clk 0:04:58.7]} 2. c4 {[%clk 0:04:58]} 2...
c6 {[%clk 0:04:57.5]} 3. Nf3 {[%clk 0:04:55.6]} 3... dxc4 {[%clk 0:04:56.6]} 4.
e3 {[%clk 0:04:52.3]} 4... b5 {[%clk 0:04:55.7]} 5. a4 {[%clk 0:04:51.3]} 5...
a6 {[%clk 0:04:54.1]} 6. Ne5 {[%clk 0:04:50.1]} 6... Bb7 {[%clk 0:04:48.5]} 7.
Qf3 {[%clk 0:04:47.1]} 7... Nf6 {[%clk 0:04:46.8]} 8. axb5 {[%clk 0:04:44]} 8...
axb5 {[%clk 0:04:45]} 9. Rxa8 {[%clk 0:04:41.2]} 9... Bxa8 {[%clk 0:04:44.9]}
10. Nc3 {[%clk 0:04:40.2]} 10... b4 {[%clk 0:04:35.7]} 11. Ne4 {[%clk
0:04:39.1]} 11... Qa5 {[%clk 0:04:27.2]} 12. Bxc4 {[%clk 0:04:34.3]} 12... c5
{[%clk 0:04:22.3]} 13. Bxf7+ {[%clk 0:04:30.8]} 13... Kd8 {[%clk 0:04:20.5]} 14.
d5 {[%clk 0:04:19.7]} 14... Nxd5 {[%clk 0:04:09.9]} 15. Bxd5 {[%clk 0:04:12.8]}
15... Bxd5 {[%clk 0:04:09.8]} 16. Nf7+ {[%clk 0:04:05.1]} 16... Bxf7 {[%clk
0:04:08.6]} 17. Qxf7 {[%clk 0:04:04]} 17... b3+ {[%clk 0:03:58.6]} 18. Ke2
{[%clk 0:04:01.1]} 18... Qa6+ {[%clk 0:03:51.2]} 19. Kf3 {[%clk 0:04:00]} 19...
Nd7 {[%clk 0:03:46.1]} 20. Rd1 {[%clk 0:03:57.9]} 20... Kc7 {[%clk 0:03:44.5]}
21. Rxd7+ {[%clk 0:03:56.7]} 21... Kxd7 {[%clk 0:03:42.4]} 22. Nxc5+ {[%clk
0:03:55.5]} 1-0

[Event "Live Chess"]
[Site "Chess.com"]
[Date "2023.05.21"]
[Round "-"]
[White "DRS44"]
[Black "NAZRIZ1977"]
[Result "0-1"]
[WhiteElo "1364"]
[BlackElo "2050"]
[TimeControl "300"]
[EndTime "16:13:29 PDT"]
[Termination "NAZRIZ1977 won by resignation"]

1. e4 {[%clk 0:04:50.5]} 1... c5 {[%clk 0:04:58.8]} 2. c3 {[%clk 0:04:46.5]}
2... d5 {[%clk 0:04:54.6]} 3. exd5 {[%clk 0:04:41.4]} 3... Qxd5 {[%clk
0:04:53.7]} 4. d4 {[%clk 0:04:39.4]} 4... Nc6 {[%clk 0:04:52.7]} 5. Nf3 {[%clk
0:04:35.8]} 5... Bg4 {[%clk 0:04:51.3]} 6. Be2 {[%clk 0:04:32]} 6... cxd4 {[%clk
0:04:46.1]} 7. cxd4 {[%clk 0:04:26.8]} 7... e6 {[%clk 0:04:45.5]} 8. Nc3 {[%clk
0:04:23.6]} 8... Qd6 {[%clk 0:04:43.9]} 9. Nb5 {[%clk 0:04:13.3]} 9... Qd8
{[%clk 0:04:36.1]} 10. Bg5 {[%clk 0:04:04.2]} 10... Qd7 {[%clk 0:04:17.9]} 11.
Ne5 {[%clk 0:03:32.6]} 11... Nxe5 {[%clk 0:04:16]} 12. dxe5 {[%clk 0:03:28.6]}
12... Bxe2 {[%clk 0:04:13.4]} 13. Qxe2 {[%clk 0:03:07.3]} 13... Bb4+ {[%clk
0:04:09.2]} 14. Nc3 {[%clk 0:02:59.4]} 14... Ne7 {[%clk 0:03:59.6]} 15. Rd1
{[%clk 0:02:43.9]} 15... Qc7 {[%clk 0:03:54.8]} 16. O-O {[%clk 0:02:22.3]} 16...
Bxc3 {[%clk 0:03:52.9]} 17. bxc3 {[%clk 0:02:16.4]} 17... O-O {[%clk 0:03:51.8]}
18. Qg4 {[%clk 0:01:59.9]} 18... Kh8 {[%clk 0:03:37.5]} 19. Qh4 {[%clk
0:01:51.1]} 19... Ng6 {[%clk 0:03:30.8]} 20. Qh5 {[%clk 0:01:44.9]} 20... Qxe5
{[%clk 0:03:21.6]} 21. Rfe1 {[%clk 0:01:29]} 21... Qc5 {[%clk 0:03:09.6]} 22.
Re3 {[%clk 0:01:18.4]} 22... h6 {[%clk 0:02:51.2]} 23. Rh3 {[%clk 0:00:57.7]}
23... Kg8 {[%clk 0:02:42.8]} 24. Bxh6 {[%clk 0:00:44.6]} 24... Qxh5 {[%clk
0:02:40.5]} 25. Rxh5 {[%clk 0:00:41.9]} 25... gxh6 {[%clk 0:02:39.8]} 26. Rxh6
{[%clk 0:00:40.5]} 26... Kg7 {[%clk 0:02:39.4]} 27. Rh3 {[%clk 0:00:34.9]} 27...
Rfd8 {[%clk 0:02:38.5]} 28. Rhd3 {[%clk 0:00:21.5]} 28... Rxd3 {[%clk
0:02:36.8]} 29. Rxd3 {[%clk 0:00:17.5]} 29... Rc8 {[%clk 0:02:34.1]} 30. g3
{[%clk 0:00:08.9]} 30... Ne5 {[%clk 0:02:30.8]} 31. h4 {[%clk 0:00:08.8]} 31...
Nxd3 {[%clk 0:02:29.7]} 0-1